[Event "*** SCC Grand Prix: Titled Tuesday Blitz"]
[Site "Chess.com"]
[Date "2020.06.02"]
[Round "8"]
[White "Kirill_Klukin"]
[Black "1977Ivan"]
[Result "1/2-1/2"]
[WhiteElo "2725"]
[BlackElo "2608"]
[TimeControl "180+1"]
[EndTime "11:37:34 PDT"]
[Termination "Game drawn - insufficient material"]

1. d4 {[%clk 0:03:00.9]} 1... Nf6 {[%clk 0:02:59.3]} 2. Nf3 {[%clk 0:03:01.2]}
2... c5 {[%clk 0:02:56.7]} 3. e3 {[%clk 0:03:00.6]} 3... g6 {[%clk 0:02:54.1]}
4. Be2 {[%clk 0:03:00]} 4... Bg7 {[%clk 0:02:53.4]} 5. O-O {[%clk 0:03:00.6]}
5... O-O {[%clk 0:02:53.5]} 6. a3 {[%clk 0:03:00.8]} 6... b6 {[%clk 0:02:42.6]}
7. c4 {[%clk 0:02:49.8]} 7... cxd4 {[%clk 0:02:41.9]} 8. Nxd4 {[%clk 0:02:49.5]}
8... Bb7 {[%clk 0:02:40.6]} 9. Bf3 {[%clk 0:02:47.3]} 9... Bxf3 {[%clk
0:02:32.4]} 10. Qxf3 {[%clk 0:02:48.2]} 10... Nc6 {[%clk 0:02:32.3]} 11. Nxc6
{[%clk 0:02:20.2]} 11... dxc6 {[%clk 0:02:31.9]} 12. Qxc6 {[%clk 0:02:21.1]}
12... Rc8 {[%clk 0:02:31.6]} 13. Qa4 {[%clk 0:02:21]} 13... Qd7 {[%clk
0:02:31.1]} 14. Qxd7 {[%clk 0:02:15.5]} 14... Nxd7 {[%clk 0:02:30.6]} 15. Nd2
{[%clk 0:02:16.2]} 15... Ne5 {[%clk 0:02:30.3]} 16. Ra2 {[%clk 0:01:39.4]} 16...
Nxc4 {[%clk 0:02:29.2]} 17. b3 {[%clk 0:01:34.8]} 17... Ne5 {[%clk 0:02:17.4]}
18. Nf3 {[%clk 0:01:23.2]} 18... Nd3 {[%clk 0:02:06.7]} 19. Bd2 {[%clk
0:01:22.6]} 19... Rfd8 {[%clk 0:02:06.9]} 20. Rb1 {[%clk 0:01:14.5]} 20... a5
{[%clk 0:01:48]} 21. Kf1 {[%clk 0:01:12.7]} 21... h6 {[%clk 0:01:39.8]} 22. Ke2
{[%clk 0:01:12.4]} 22... f5 {[%clk 0:01:36.9]} 23. Ne1 {[%clk 0:00:58.4]} 23...
Ne5 {[%clk 0:01:27.2]} 24. Nf3 {[%clk 0:00:48.7]} 24... Nf7 {[%clk 0:00:58.8]}
25. b4 {[%clk 0:00:37.6]} 25... a4 {[%clk 0:00:56]} 26. b5 {[%clk 0:00:37]}
26... e5 {[%clk 0:00:55.1]} 27. Rb4 {[%clk 0:00:29.5]} 27... e4 {[%clk
0:00:54.6]} 28. Ne1 {[%clk 0:00:29.5]} 28... Rd5 {[%clk 0:00:50.7]} 29. Rxa4
{[%clk 0:00:19.2]} 29... Nd6 {[%clk 0:00:44.7]} 30. Ra6 {[%clk 0:00:16.7]} 30...
Rxb5 {[%clk 0:00:43.2]} 31. Nc2 {[%clk 0:00:17.1]} 31... Nc4 {[%clk 0:00:38]}
32. Nb4 {[%clk 0:00:15.4]} 32... Ra5 {[%clk 0:00:36.1]} 33. Rxa5 {[%clk
0:00:12.1]} 33... bxa5 {[%clk 0:00:36.1]} 34. Nd5 {[%clk 0:00:12.5]} 34... Rc5
{[%clk 0:00:35.8]} 35. Nf4 {[%clk 0:00:10.4]} 35... Kf7 {[%clk 0:00:33.1]} 36.
Rc2 {[%clk 0:00:09.6]} 36... Bf8 {[%clk 0:00:31.5]} 37. a4 {[%clk 0:00:06]}
37... Nxd2 {[%clk 0:00:23.6]} 38. Rxc5 {[%clk 0:00:05.6]} 38... Bxc5 {[%clk
0:00:22.4]} 39. Kxd2 {[%clk 0:00:06.2]} 39... Bb4+ {[%clk 0:00:21.4]} 40. Ke2
{[%clk 0:00:03.7]} 40... g5 {[%clk 0:00:21.3]} 41. Nh3 {[%clk 0:00:03.9]} 41...
Ke6 {[%clk 0:00:20.3]} 42. f3 {[%clk 0:00:04.5]} 42... Kd5 {[%clk 0:00:19.9]}
43. Nf2 {[%clk 0:00:04.9]} 43... exf3+ {[%clk 0:00:17.7]} 44. gxf3 {[%clk
0:00:05.8]} 44... Kc4 {[%clk 0:00:18.1]} 45. e4 {[%clk 0:00:06.4]} 45... fxe4
{[%clk 0:00:18.3]} 46. fxe4 {[%clk 0:00:06.5]} 46... Kd4 {[%clk 0:00:17.3]} 47.
Kf3 {[%clk 0:00:06.5]} 47... h5 {[%clk 0:00:17.5]} 48. h3 {[%clk 0:00:06.7]}
48... Bd6 {[%clk 0:00:17.2]} 49. Nd1 {[%clk 0:00:06.7]} 49... Bb4 {[%clk
0:00:15.2]} 50. Ne3 {[%clk 0:00:06.7]} 50... Bd2 {[%clk 0:00:07.2]} 51. Nf5+
{[%clk 0:00:05.4]} 51... Ke5 {[%clk 0:00:07.2]} 52. Ne7 {[%clk 0:00:05.9]} 52...
g4+ {[%clk 0:00:05.5]} 53. hxg4 {[%clk 0:00:05.8]} 53... hxg4+ {[%clk
0:00:06.3]} 54. Kxg4 {[%clk 0:00:05.4]} 54... Kxe4 {[%clk 0:00:06.8]} 55. Nc6
{[%clk 0:00:06]} 55... Kd5 {[%clk 0:00:07.1]} 56. Nxa5 {[%clk 0:00:05.5]} 56...
Bxa5 {[%clk 0:00:07.6]} 57. Kf3 {[%clk 0:00:06.4]} 57... Kc4 {[%clk 0:00:08]}
58. Ke2 {[%clk 0:00:07.3]} 58... Kb4 {[%clk 0:00:08.5]} 59. Kd1 {[%clk
0:00:08.2]} 59... Kxa4 {[%clk 0:00:09]} 1/2-1/2

[Event "*** SCC Grand Prix: Titled Tuesday Blitz"]
[Site "Chess.com"]
[Date "2020.06.02"]
[Round "8"]
[White "GMSrinath"]
[Black "novendrapriasmoro"]
[Result "0-1"]
[WhiteElo "2785"]
[BlackElo "2633"]
[TimeControl "180+1"]
[EndTime "11:37:36 PDT"]
[Termination "novendrapriasmoro won by resignation"]

1. Nf3 {[%clk 0:03:00.9]} 1... Nf6 {[%clk 0:02:59.9]} 2. c4 {[%clk 0:02:58.8]}
2... g6 {[%clk 0:03:00.8]} 3. b3 {[%clk 0:02:57.1]} 3... Bg7 {[%clk 0:03:01.7]}
4. Bb2 {[%clk 0:02:57.7]} 4... O-O {[%clk 0:03:02.1]} 5. g3 {[%clk 0:02:58.2]}
5... d6 {[%clk 0:03:02.3]} 6. Bg2 {[%clk 0:02:58.7]} 6... e5 {[%clk 0:03:02.7]}
7. O-O {[%clk 0:02:58.4]} 7... e4 {[%clk 0:02:58.9]} 8. Ne1 {[%clk 0:02:55.1]}
8... c5 {[%clk 0:02:59]} 9. d3 {[%clk 0:02:55]} 9... Re8 {[%clk 0:02:43.3]} 10.
Nc3 {[%clk 0:02:31.1]} 10... e3 {[%clk 0:02:40.1]} 11. fxe3 {[%clk 0:02:32]}
11... Ng4 {[%clk 0:02:36.2]} 12. Nc2 {[%clk 0:02:32.2]} 12... Nc6 {[%clk
0:02:19.3]} 13. e4 {[%clk 0:02:03.6]} 13... Nb4 {[%clk 0:02:08.4]} 14. Na4
{[%clk 0:00:32.3]} 14... Nxc2 {[%clk 0:02:03.5]} 15. Bxg7 {[%clk 0:00:30.3]}
15... Nce3 {[%clk 0:01:55.4]} 16. Qd2 {[%clk 0:00:30]} 16... Kxg7 {[%clk
0:01:54.6]} 17. Rf3 {[%clk 0:00:30.5]} 17... Nxg2 {[%clk 0:01:52.1]} 18. Kxg2
{[%clk 0:00:31.4]} 18... Ne5 {[%clk 0:01:50.8]} 19. Rf2 {[%clk 0:00:31.1]} 19...
Be6 {[%clk 0:01:46.4]} 20. Raf1 {[%clk 0:00:30.8]} 20... a6 {[%clk 0:01:45.3]}
21. Nc3 {[%clk 0:00:30.4]} 21... Qd7 {[%clk 0:01:45.3]} 22. Kg1 {[%clk
0:00:29.5]} 22... Bh3 {[%clk 0:01:45.1]} 23. Re1 {[%clk 0:00:29]} 23... Be6
{[%clk 0:01:41.6]} 24. Qf4 {[%clk 0:00:27.8]} 24... Qe7 {[%clk 0:01:39.8]} 25.
Ref1 {[%clk 0:00:26.6]} 25... h6 {[%clk 0:01:39]} 26. Qd2 {[%clk 0:00:25.4]}
26... Qg5 {[%clk 0:01:38.6]} 27. e3 {[%clk 0:00:23.9]} 27... Ng4 {[%clk
0:01:38.4]} 28. Rf4 {[%clk 0:00:21.3]} 28... Ne5 {[%clk 0:01:20.6]} 29. Qe2
{[%clk 0:00:19.6]} 29... Bh3 {[%clk 0:01:17.5]} 30. R1f2 {[%clk 0:00:19]} 30...
Be6 {[%clk 0:00:48.5]} 31. d4 {[%clk 0:00:18.2]} 31... Ng4 {[%clk 0:00:47.8]}
32. Rf1 {[%clk 0:00:14.2]} 32... f5 {[%clk 0:00:25.3]} 33. exf5 {[%clk
0:00:07.8]} 33... gxf5 {[%clk 0:00:25.3]} 34. d5 {[%clk 0:00:07.2]} 34... Bd7
{[%clk 0:00:25.3]} 35. R1f3 {[%clk 0:00:07.1]} 35... Re7 {[%clk 0:00:24]} 36.
Qb2 {[%clk 0:00:06.8]} 36... Kh7 {[%clk 0:00:23.2]} 37. Nd1 {[%clk 0:00:07.3]}
37... Rae8 {[%clk 0:00:22.1]} 38. Qd2 {[%clk 0:00:07.3]} 38... Qg7 {[%clk
0:00:21.9]} 39. Qd3 {[%clk 0:00:07.2]} 39... Ne5 {[%clk 0:00:21.6]} 40. Qf1
{[%clk 0:00:07.4]} 40... Nxf3+ {[%clk 0:00:21.6]} 41. Qxf3 {[%clk 0:00:08.3]}
41... Re4 {[%clk 0:00:21.2]} 42. Nf2 {[%clk 0:00:07.2]} 42... Rxf4 {[%clk
0:00:21.2]} 43. Qxf4 {[%clk 0:00:08.1]} 43... Qe5 {[%clk 0:00:20.3]} 44. Qh4
{[%clk 0:00:07.6]} 44... Qxe3 {[%clk 0:00:20.2]} 45. Qh5 {[%clk 0:00:07.5]}
45... Qe1+ {[%clk 0:00:19.2]} 46. Kg2 {[%clk 0:00:07.9]} 46... Qe7 {[%clk
0:00:19.7]} 47. h4 {[%clk 0:00:07.5]} 47... Kg7 {[%clk 0:00:18.9]} 48. Qf3
{[%clk 0:00:06.1]} 48... Qf6 {[%clk 0:00:18.8]} 49. Nd3 {[%clk 0:00:04.5]} 49...
Re4 {[%clk 0:00:16.9]} 50. Nf4 {[%clk 0:00:04.8]} 50... Rxf4 {[%clk 0:00:16.8]}
51. Qxf4 {[%clk 0:00:04.6]} 51... b5 {[%clk 0:00:17.7]} 52. Kf2 {[%clk
0:00:03.3]} 52... Qd4+ {[%clk 0:00:17.4]} 53. Qxd4+ {[%clk 0:00:02.9]} 53...
cxd4 {[%clk 0:00:18.3]} 54. Ke2 {[%clk 0:00:03.7]} 54... Kf6 {[%clk 0:00:18.4]}
55. Kd3 {[%clk 0:00:04.3]} 55... Ke5 {[%clk 0:00:18.7]} 56. h5 {[%clk
0:00:03.6]} 56... bxc4+ {[%clk 0:00:18.8]} 57. bxc4 {[%clk 0:00:03.1]} 57... Be8
{[%clk 0:00:18.8]} 58. a3 {[%clk 0:00:03.5]} 58... Bxh5 {[%clk 0:00:18.7]} 59.
Kd2 {[%clk 0:00:04.4]} 59... Bg6 {[%clk 0:00:18.3]} 0-1

[Event "*** SCC Grand Prix: Titled Tuesday Blitz"]
[Site "Chess.com"]
[Date "2020.06.02"]
[Round "8"]
[White "TigranMukhutdinov"]
[Black "Reader777"]
[Result "1-0"]
[WhiteElo "2464"]
[BlackElo "2590"]
[TimeControl "180+1"]
[EndTime "11:37:37 PDT"]
[Termination "TigranMukhutdinov won by resignation"]

1. Nf3 {[%clk 0:03:00.9]} 1... Nf6 {[%clk 0:02:59]} 2. g3 {[%clk 0:03:01.1]}
2... b5 {[%clk 0:02:57.1]} 3. Na3 {[%clk 0:03:00.2]} 3... a6 {[%clk 0:02:54.9]}
4. c4 {[%clk 0:02:59.9]} 4... e6 {[%clk 0:02:31.6]} 5. b3 {[%clk 0:02:59.3]}
5... Bb7 {[%clk 0:02:30.3]} 6. Bg2 {[%clk 0:02:58.8]} 6... b4 {[%clk 0:02:25.8]}
7. Nc2 {[%clk 0:02:58.3]} 7... Be7 {[%clk 0:02:24.6]} 8. O-O {[%clk 0:02:57.6]}
8... O-O {[%clk 0:02:24.9]} 9. a3 {[%clk 0:02:57.9]} 9... bxa3 {[%clk
0:02:22.5]} 10. Bxa3 {[%clk 0:02:57.4]} 10... d5 {[%clk 0:02:21.3]} 11. Bxe7
{[%clk 0:02:55.6]} 11... Qxe7 {[%clk 0:02:20.8]} 12. d3 {[%clk 0:02:56.5]} 12...
Nbd7 {[%clk 0:02:19.4]} 13. b4 {[%clk 0:02:54.4]} 13... dxc4 {[%clk 0:02:16.9]}
14. dxc4 {[%clk 0:02:54.3]} 14... c5 {[%clk 0:02:17.2]} 15. b5 {[%clk
0:02:47.7]} 15... axb5 {[%clk 0:02:16.3]} 16. cxb5 {[%clk 0:02:48.6]} 16... Nb6
{[%clk 0:02:15.2]} 17. Ne3 {[%clk 0:02:46]} 17... Nfd5 {[%clk 0:02:10.7]} 18.
Qd2 {[%clk 0:02:41.7]} 18... Nxe3 {[%clk 0:02:06.7]} 19. Qxe3 {[%clk 0:02:39.4]}
19... Bd5 {[%clk 0:02:01.3]} 20. Rxa8 {[%clk 0:02:35.6]} 20... Rxa8 {[%clk
0:01:59.7]} 21. Rc1 {[%clk 0:02:36.5]} 21... Nc4 {[%clk 0:01:40]} 22. Qd3 {[%clk
0:02:21.3]} 22... Nb6 {[%clk 0:01:35.6]} 23. e4 {[%clk 0:02:19.5]} 23... Bb7
{[%clk 0:01:32.7]} 24. Ne5 {[%clk 0:02:19.4]} 24... Rc8 {[%clk 0:01:27.1]} 25.
Qa3 {[%clk 0:02:13.5]} 25... Qd6 {[%clk 0:01:16.8]} 26. Qa7 {[%clk 0:02:08.4]}
26... Qxe5 {[%clk 0:01:00.9]} 27. Qxb7 {[%clk 0:02:04.4]} 27... Qc7 {[%clk
0:00:59.6]} 28. e5 {[%clk 0:02:00.3]} 28... Nd7 {[%clk 0:00:39.9]} 29. f4 {[%clk
0:01:49.8]} 29... Qd8 {[%clk 0:00:28.3]} 30. Rd1 {[%clk 0:01:39.3]} 30... Rc7
{[%clk 0:00:28.1]} 31. Qb6 {[%clk 0:01:33.1]} 31... Qc8 {[%clk 0:00:24.9]} 32.
Qd6 {[%clk 0:01:31.4]} 32... Nf8 {[%clk 0:00:22.5]} 33. b6 {[%clk 0:01:30.5]}
33... Rd7 {[%clk 0:00:21]} 34. Qxd7 {[%clk 0:01:24.2]} 34... Qxd7 {[%clk
0:00:17.5]} 35. Rxd7 {[%clk 0:01:20.3]} 35... Nxd7 {[%clk 0:00:18.4]} 36. b7
{[%clk 0:01:21.2]} 36... Kf8 {[%clk 0:00:17.6]} 37. Kf2 {[%clk 0:01:20.7]} 37...
Ke7 {[%clk 0:00:17.9]} 38. Ke2 {[%clk 0:01:21.1]} 38... Kd8 {[%clk 0:00:18.3]}
39. Kd3 {[%clk 0:01:21.7]} 39... Kc7 {[%clk 0:00:18.4]} 40. Kc4 {[%clk
0:01:22.3]} 40... Kb6 {[%clk 0:00:16.8]} 41. Be4 {[%clk 0:01:21.1]} 41... g6
{[%clk 0:00:15]} 42. g4 {[%clk 0:01:20.7]} 42... h6 {[%clk 0:00:13.5]} 43. h4
{[%clk 0:01:20.3]} 43... Kc7 {[%clk 0:00:12.6]} 44. Kb5 {[%clk 0:01:19]} 44...
h5 {[%clk 0:00:07.4]} 45. gxh5 {[%clk 0:01:15.4]} 45... gxh5 {[%clk 0:00:08.3]}
46. Bc6 {[%clk 0:01:16.1]} 46... Nb8 {[%clk 0:00:07.5]} 47. Be8 {[%clk
0:01:15.1]} 47... Kxb7 {[%clk 0:00:07.8]} 48. Bxf7 {[%clk 0:01:15.4]} 48... Nc6
{[%clk 0:00:08.1]} 49. Kxc5 {[%clk 0:01:13.7]} 49... Nd8 {[%clk 0:00:08.3]} 50.
Bxh5 {[%clk 0:01:13.7]} 50... Kc7 {[%clk 0:00:09.2]} 51. Be8 {[%clk 0:01:13.3]}
51... Nb7+ {[%clk 0:00:09.3]} 52. Kd4 {[%clk 0:01:13.8]} 52... Kd8 {[%clk
0:00:09.9]} 53. Bc6 {[%clk 0:01:14]} 53... Na5 {[%clk 0:00:10.3]} 54. Be4 {[%clk
0:01:12.7]} 54... Ke7 {[%clk 0:00:10.7]} 55. h5 {[%clk 0:01:12.2]} 55... Kf8
{[%clk 0:00:11.1]} 56. h6 {[%clk 0:01:12.4]} 56... Kg8 {[%clk 0:00:11.4]} 57.
Kc5 {[%clk 0:01:11.8]} 57... Nb3+ {[%clk 0:00:11]} 58. Kd6 {[%clk 0:01:11.9]}
58... Nd4 {[%clk 0:00:11.5]} 59. Ke7 {[%clk 0:01:10.9]} 59... Kh8 {[%clk
0:00:11.2]} 60. Kf6 {[%clk 0:01:10.3]} 60... Kg8 {[%clk 0:00:11.5]} 61. h7+
{[%clk 0:01:10.1]} 61... Kh8 {[%clk 0:00:11.9]} 62. Kf7 {[%clk 0:01:10]} 62...
Ne2 {[%clk 0:00:12.1]} 63. Kxe6 {[%clk 0:01:09.5]} 63... Nxf4+ {[%clk 0:00:13]}
64. Kf5 {[%clk 0:01:09.5]} 64... Nh5 {[%clk 0:00:12.6]} 65. Kg6 {[%clk
0:01:05.2]} 65... Nf4+ {[%clk 0:00:12]} 66. Kf7 {[%clk 0:01:05.2]} 66... Ng6
{[%clk 0:00:09.6]} 67. e6 {[%clk 0:01:04.9]} 67... Ne5+ {[%clk 0:00:09.9]} 68.
Kf6 {[%clk 0:01:03.3]} 68... Nc4 {[%clk 0:00:10.1]} 69. e7 {[%clk 0:01:02.1]}
69... Nd6 {[%clk 0:00:10.3]} 70. Ke6 {[%clk 0:01:02.3]} 70... Ne8 {[%clk
0:00:08.9]} 71. Bg6 {[%clk 0:01:01.9]} 71... Ng7+ {[%clk 0:00:04.7]} 72. Kd7
{[%clk 0:01:00.4]} 72... Ne8 {[%clk 0:00:02.9]} 73. Bxe8 {[%clk 0:00:59.5]} 1-0

[Event "*** SCC Grand Prix: Titled Tuesday Blitz"]
[Site "Chess.com"]
[Date "2020.06.02"]
[Round "8"]
[White "chessablanca"]
[Black "olksuna"]
[Result "0-1"]
[WhiteElo "2436"]
[BlackElo "2582"]
[TimeControl "180+1"]
[EndTime "11:37:38 PDT"]
[Termination "olksuna won by checkmate"]

1. Nf3 {[%clk 0:03:00.9]} 1... Nf6 {[%clk 0:02:56.9]} 2. g3 {[%clk 0:03:00.1]}
2... g6 {[%clk 0:02:54.7]} 3. b3 {[%clk 0:02:59.9]} 3... Bg7 {[%clk 0:02:52.3]}
4. Bb2 {[%clk 0:03:00.4]} 4... d5 {[%clk 0:02:52.1]} 5. Bg2 {[%clk 0:03:00.4]}
5... c5 {[%clk 0:02:52]} 6. O-O {[%clk 0:03:00.5]} 6... O-O {[%clk 0:02:52.6]}
7. d3 {[%clk 0:03:00.6]} 7... Nc6 {[%clk 0:02:52.1]} 8. Nbd2 {[%clk 0:03:00.9]}
8... Qc7 {[%clk 0:02:50.1]} 9. Re1 {[%clk 0:03:00]} 9... e5 {[%clk 0:02:50.2]}
10. e4 {[%clk 0:03:00.3]} 10... Re8 {[%clk 0:02:49]} 11. exd5 {[%clk 0:02:43.8]}
11... Nxd5 {[%clk 0:02:48.4]} 12. Nxe5 {[%clk 0:02:38]} 12... Nxe5 {[%clk
0:02:34.4]} 13. Bxd5 {[%clk 0:02:36.5]} 13... Bh3 {[%clk 0:02:35.1]} 14. f4
{[%clk 0:02:09.9]} 14... Nxd3 {[%clk 0:02:28.7]} 15. cxd3 {[%clk 0:01:41.3]}
15... Bxb2 {[%clk 0:02:26.1]} 16. Rb1 {[%clk 0:01:40.4]} 16... Bd4+ {[%clk
0:01:55]} 17. Kh1 {[%clk 0:01:39.2]} 17... Kg7 {[%clk 0:01:34]} 18. Qf3 {[%clk
0:01:33.3]} 18... Bc3 {[%clk 0:01:27.3]} 19. Rxe8 {[%clk 0:01:18.2]} 19... Rxe8
{[%clk 0:01:23.8]} 20. Ne4 {[%clk 0:01:17.7]} 20... Bd4 {[%clk 0:01:07.4]} 21.
g4 {[%clk 0:01:12]} 21... Qd7 {[%clk 0:01:03.4]} 22. Qxh3 {[%clk 0:01:03.8]}
22... Qxd5 {[%clk 0:01:03]} 23. Qf3 {[%clk 0:00:50.4]} 23... f5 {[%clk
0:00:52.7]} 24. gxf5 {[%clk 0:00:43.2]} 24... gxf5 {[%clk 0:00:52.7]} 25. Qg2+
{[%clk 0:00:33]} 25... Kf8 {[%clk 0:00:43.4]} 26. Ng3 {[%clk 0:00:32.2]} 26...
Rd8 {[%clk 0:00:28.2]} 27. Qxd5 {[%clk 0:00:27]} 27... Rxd5 {[%clk 0:00:29.1]}
28. Re1 {[%clk 0:00:24.6]} 28... Kf7 {[%clk 0:00:23.8]} 29. Kg2 {[%clk 0:00:24]}
29... Bc3 {[%clk 0:00:23.2]} 30. Rd1 {[%clk 0:00:23]} 30... b5 {[%clk
0:00:22.8]} 31. Ne2 {[%clk 0:00:18.9]} 31... Bf6 {[%clk 0:00:20.6]} 32. Kf3
{[%clk 0:00:16.4]} 32... c4 {[%clk 0:00:20.9]} 33. bxc4 {[%clk 0:00:15.8]} 33...
bxc4 {[%clk 0:00:21.8]} 34. Ke3 {[%clk 0:00:15.7]} 34... Ra5 {[%clk 0:00:17.4]}
35. dxc4 {[%clk 0:00:15]} 35... Rxa2 {[%clk 0:00:17.4]} 36. Rd2 {[%clk
0:00:13.8]} 36... Rxd2 {[%clk 0:00:13.5]} 37. Kxd2 {[%clk 0:00:14.7]} 37... Ke6
{[%clk 0:00:12.4]} 38. Kd3 {[%clk 0:00:14.8]} 38... a5 {[%clk 0:00:11.9]} 39.
Nc1 {[%clk 0:00:09.1]} 39... a4 {[%clk 0:00:10.1]} 40. Na2 {[%clk 0:00:09.3]}
40... Kd6 {[%clk 0:00:08.3]} 41. h3 {[%clk 0:00:05.4]} 41... Kc5 {[%clk
0:00:07.7]} 42. Nc1 {[%clk 0:00:06]} 42... Kb4 {[%clk 0:00:06]} 43. Na2+ {[%clk
0:00:05.3]} 43... Kc5 {[%clk 0:00:04.4]} 44. Nc1 {[%clk 0:00:05.6]} 44... h5
{[%clk 0:00:04.5]} 45. Na2 {[%clk 0:00:05.2]} 45... Bb2 {[%clk 0:00:03.7]} 46.
h4 {[%clk 0:00:03.8]} 46... Bf6 {[%clk 0:00:03.3]} 47. Nc1 {[%clk 0:00:03.5]}
47... Bxh4 {[%clk 0:00:03.1]} 48. Ne2 {[%clk 0:00:04]} 48... Bf6 {[%clk
0:00:02.7]} 49. Ng3 {[%clk 0:00:04.4]} 49... h4 {[%clk 0:00:03.2]} 50. Nxf5
{[%clk 0:00:04.7]} 50... a3 {[%clk 0:00:03.8]} 51. Kc2 {[%clk 0:00:04.2]} 51...
a2 {[%clk 0:00:03.9]} 52. Ng7 {[%clk 0:00:04]} 52... a1=Q {[%clk 0:00:04]} 53.
Ne6+ {[%clk 0:00:04.8]} 53... Kb4 {[%clk 0:00:04.6]} 54. Nd4 {[%clk 0:00:04.4]}
54... Qxd4 {[%clk 0:00:04.5]} 55. Kc1 {[%clk 0:00:04.7]} 55... Qxf4+ {[%clk
0:00:04.6]} 56. Kd1 {[%clk 0:00:05.4]} 56... Qd4+ {[%clk 0:00:04.6]} 57. Ke2
{[%clk 0:00:06.3]} 57... Bg5 {[%clk 0:00:04.1]} 58. Kf3 {[%clk 0:00:07.2]} 58...
h3 {[%clk 0:00:04.1]} 59. Kg3 {[%clk 0:00:07.4]} 59... Qf4+ {[%clk 0:00:04.4]}
60. Kxh3 {[%clk 0:00:08.3]} 60... Qf3+ {[%clk 0:00:04.9]} 61. Kh2 {[%clk
0:00:08.5]} 61... Qg4 {[%clk 0:00:05.6]} 62. Kh1 {[%clk 0:00:08.6]} 62... Be3
{[%clk 0:00:06.3]} 63. Kh2 {[%clk 0:00:08.8]} 63... Bf2 {[%clk 0:00:05.9]} 64.
Kh1 {[%clk 0:00:08.9]} 64... Qg1# {[%clk 0:00:05.6]} 0-1

[Event "*** SCC Grand Prix: Titled Tuesday Blitz"]
[Site "Chess.com"]
[Date "2020.06.02"]
[Round "8"]
[White "XxPetroffsxX"]
[Black "Funkmaus"]
[Result "0-1"]
[WhiteElo "2050"]
[BlackElo "2196"]
[TimeControl "180+1"]
[EndTime "11:37:39 PDT"]
[Termination "Funkmaus won on time"]

1. e4 {[%clk 0:02:55.4]} 1... c6 {[%clk 0:03:00.9]} 2. Nc3 {[%clk 0:02:54.6]}
2... d5 {[%clk 0:03:01.8]} 3. d4 {[%clk 0:02:54.8]} 3... dxe4 {[%clk 0:03:02]}
4. Nxe4 {[%clk 0:02:55.2]} 4... Nf6 {[%clk 0:03:02.9]} 5. Ng5 {[%clk 0:02:54.8]}
5... Bf5 {[%clk 0:02:56.8]} 6. Bc4 {[%clk 0:02:50.9]} 6... e6 {[%clk 0:02:55.1]}
7. c3 {[%clk 0:02:48.4]} 7... Nbd7 {[%clk 0:02:55]} 8. Ne2 {[%clk 0:02:44.9]}
8... h6 {[%clk 0:02:52.3]} 9. Nf3 {[%clk 0:02:44.1]} 9... Be7 {[%clk 0:02:48.7]}
10. O-O {[%clk 0:02:43.2]} 10... O-O {[%clk 0:02:48.3]} 11. h3 {[%clk
0:02:42.9]} 11... Rc8 {[%clk 0:02:44.8]} 12. Ng3 {[%clk 0:02:41.5]} 12... Bh7
{[%clk 0:02:41.3]} 13. Re1 {[%clk 0:02:38.5]} 13... c5 {[%clk 0:02:37.6]} 14.
Qe2 {[%clk 0:02:34.9]} 14... a6 {[%clk 0:02:34]} 15. Ne5 {[%clk 0:02:31.2]}
15... Nxe5 {[%clk 0:02:28.2]} 16. dxe5 {[%clk 0:02:29.3]} 16... Nd5 {[%clk
0:02:25.5]} 17. Nh5 {[%clk 0:02:22.6]} 17... Bg6 {[%clk 0:02:13.3]} 18. Qg4
{[%clk 0:02:08.1]} 18... Kh7 {[%clk 0:01:37.9]} 19. Bd3 {[%clk 0:01:56]} 19...
Rg8 {[%clk 0:01:23.4]} 20. Bxg6+ {[%clk 0:01:49.8]} 20... fxg6 {[%clk
0:01:24.3]} 21. Ng3 {[%clk 0:01:43.6]} 21... Rc6 {[%clk 0:01:15.4]} 22. Be3
{[%clk 0:01:36.6]} 22... Qe8 {[%clk 0:01:14.7]} 23. Rad1 {[%clk 0:01:31.3]}
23... b5 {[%clk 0:01:14.5]} 24. Ne4 {[%clk 0:01:29.7]} 24... c4 {[%clk 0:01:11]}
25. Bc1 {[%clk 0:01:26.5]} 25... Rf8 {[%clk 0:01:07.8]} 26. Nd6 {[%clk
0:01:23.9]} 26... Bxd6 {[%clk 0:01:01.4]} 27. exd6 {[%clk 0:01:22.5]} 27... Rxd6
{[%clk 0:01:01.7]} 28. Rd4 {[%clk 0:01:02.3]} 28... Qf7 {[%clk 0:00:58.7]} 29.
f3 {[%clk 0:01:00.1]} 29... Nf6 {[%clk 0:00:52.5]} 30. Qf4 {[%clk 0:00:54.5]}
30... Rxd4 {[%clk 0:00:46.3]} 31. Qxd4 {[%clk 0:00:53.8]} 31... Nd5 {[%clk
0:00:39.9]} 32. Qe5 {[%clk 0:00:51]} 32... Re8 {[%clk 0:00:38.7]} 33. Bd2 {[%clk
0:00:47]} 33... Qf6 {[%clk 0:00:38.6]} 34. Kf2 {[%clk 0:00:41.9]} 34... Qxe5
{[%clk 0:00:35.6]} 35. Rxe5 {[%clk 0:00:41.1]} 35... Kg8 {[%clk 0:00:36.1]} 36.
Be3 {[%clk 0:00:39.8]} 36... Kf7 {[%clk 0:00:35]} 37. Bd4 {[%clk 0:00:39.1]}
37... Nf6 {[%clk 0:00:26.6]} 38. g4 {[%clk 0:00:35.5]} 38... Rd8 {[%clk
0:00:24.3]} 39. Rc5 {[%clk 0:00:33.5]} 39... Nd5 {[%clk 0:00:19.5]} 40. Be5
{[%clk 0:00:31.4]} 40... Rd7 {[%clk 0:00:19]} 41. Rc8 {[%clk 0:00:29.7]} 41...
Ra7 {[%clk 0:00:18.4]} 42. Rc6 {[%clk 0:00:26.1]} 42... g5 {[%clk 0:00:18.4]}
43. Ke2 {[%clk 0:00:23.5]} 43... Nf4+ {[%clk 0:00:18.5]} 44. Bxf4 {[%clk
0:00:22.5]} 44... gxf4 {[%clk 0:00:19.4]} 45. Rd6 {[%clk 0:00:19.7]} 45... Kf6
{[%clk 0:00:19.6]} 46. h4 {[%clk 0:00:18]} 46... g5 {[%clk 0:00:19.8]} 47. h5
{[%clk 0:00:14.6]} 47... a5 {[%clk 0:00:18.5]} 48. Rb6 {[%clk 0:00:13.6]} 48...
b4 {[%clk 0:00:18.2]} 49. cxb4 {[%clk 0:00:08.5]} 49... axb4 {[%clk 0:00:19.1]}
50. Rxb4 {[%clk 0:00:08.5]} 50... Rxa2 {[%clk 0:00:19.2]} 51. Kd2 {[%clk
0:00:07.9]} 51... Ke5 {[%clk 0:00:15.7]} 52. Kc3 {[%clk 0:00:07.3]} 52... Ra1
{[%clk 0:00:16.1]} 53. Rb5+ {[%clk 0:00:04.1]} 53... Kf6 {[%clk 0:00:15.3]} 54.
Kxc4 {[%clk 0:00:03.6]} 54... Rf1 {[%clk 0:00:16.2]} 55. Rb3 {[%clk 0:00:02.6]}
55... Rf2 {[%clk 0:00:16.2]} 0-1